{"text_format":"1","workbook":"xlsx","n_sheets":5,"sheets":["Регистрация","Кроссворд","Ответы","Анализ","Результат"],"not_rendered":{"charts":0,"images":2,"macros":1,"external_links":0,"defined_names":0,"comments":2,"pivot_tables":0},"unopened":[],"bounds":{"document_bytes":16777216,"sheet_cells":100000,"rows_first":2000,"rows_last":500,"rows_between":2000,"halvings":0,"cell_chars":16384,"cell_head_chars":4096},"cells_cut":0,"cells_raw":0,"read":"whole","date_system":"1900"}

{"sheet":"Регистрация","index":0,"n_rows":16,"n_cols":7,"rows_kept":16,"cut":false,"hidden":false,"merged":[[15,6,15,7],[4,5,4,8],[5,5,6,5],[7,5,8,5],[9,5,10,5],[5,6,6,8],[7,6,8,8],[9,6,10,8]]}
[]
[]
[]
[]
[null,null,null,null,null,"Регистрация"]
[null,null,null,null,null,"Фамилия"]
[]
[null,null,null,null,null,"Имя"]
[]
[null,null,null,null,null,"Класс"]
[]
[]
[]
[]
[]
[null,null,null,null,null,null,"Далее"]

{"sheet":"Кроссворд","index":1,"n_rows":25,"n_cols":15,"rows_kept":25,"cut":false,"hidden":false,"merged":[[1,8,1,13],[24,14,24,21]]}
[]
[null,null,null,null,null,null,null,null,"Кроссворд"]
[]
[]
[]
[]
[]
[]
[]
[]
[]
[]
[]
[]
[]
[]
[]
[]
[]
[]
[]
[]
[]
[]
[null,null,null,null,null,null,null,null,null,null,null,null,null,null,"Показать результат"]

{"sheet":"Ответы","index":2,"n_rows":25,"n_cols":21,"rows_kept":25,"cut":false,"hidden":true,"merged":[[3,1,3,6]]}
[]
[]
[]
[null,"Кроссворд"]
[null,null,null,null,null,null,null,null,null,null,null,"Ю",null,null,"б"]
[null,null,null,null,null,null,null,null,null,null,null,"Н",null,null,"а"]
[null,null,"п",null,null,null,null,null,null,null,"к","О","л","и","з","е","й"]
[null,null,"о",null,null,null,null,null,null,null,null,"Н",null,null,"и"]
[null,null,"л","и","т","е","р","а","т","у","р","а",null,null,"л"]
[null,null,"и",null,null,null,null,null,null,null,null,null,null,null,"и"]
[null,null,"г",null,null,null,null,null,null,null,null,null,null,null,"к"]
[null,"м","и","ф","о","л","о","г","и","я",null,null,null,null,"а","р","к","а"]
[null,null,"м",null,null,null,null,null,null,null,null,null,null,null,null,null,null,"к"]
[null,null,"н",null,null,"в",null,null,null,null,null,null,null,null,null,null,null,"в"]
["ю","п","и","т","е","р",null,null,null,null,null,null,null,null,null,null,"в","е","л","и","т"]
[null,null,"я",null,null,"е",null,null,null,null,null,null,null,null,null,null,null,"д"]
[null,null,null,null,null,"м",null,"к",null,null,null,null,null,null,null,null,null,"у"]
[null,null,null,null,null,"я","н","у","с",null,null,null,null,null,null,null,null,"к"]
[null,null,null,null,null,null,null,"п",null,null,"н"]
[null,null,null,null,null,null,"к","о","н","с","у","л"]
[null,null,null,null,null,null,null,"л",null,null,"м"]
[null,null,null,null,null,null,null,null,null,null,"и"]
[null,null,null,null,null,null,null,null,null,null,"т"]
[null,null,null,null,null,null,null,null,null,null,"о"]
[null,null,null,null,null,null,null,null,null,null,"р"]

{"sheet":"Анализ","index":3,"n_rows":17,"n_cols":7,"rows_kept":17,"cut":false,"hidden":true,"merged":[]}
[]
[null,null,null,"№","ответ","правильный ответ","баллы"]
[null,null,null,1,{"$f":"CONCATENATE(Кроссворд!J5,Кроссворд!J6,Кроссворд!J7,Кроссворд!J8,Кроссворд!J9,Кроссворд!J10,Кроссворд!J11,Кроссворд!J12,Кроссворд!J13,Кроссворд!J14)","v":""},"полигимния",{"$f":"IF(E3=F3,1,0)","v":0}]
[null,null,null,2,{"$f":"CONCATENATE(Кроссворд!J7,Кроссворд!K7,Кроссворд!L7,Кроссворд!M7,Кроссворд!N7,Кроссворд!O7,Кроссворд!P7,Кроссворд!Q7,Кроссворд!R7,Кроссворд!S7)","v":""},"литература",0]
[null,null,null,3,{"$f":"CONCATENATE(Кроссворд!I10,Кроссворд!J10,Кроссворд!K10,Кроссворд!L10,Кроссворд!M10,Кроссворд!N10,Кроссворд!O10,Кроссворд!P10,Кроссворд!Q10)","v":""},"мифология",0]
[null,null,null,4,{"$f":"CONCATENATE(Кроссворд!H13,Кроссворд!I13,Кроссворд!J13,Кроссворд!L13,Кроссворд!L13,Кроссворд!M13)","v":""},"юпитер",0]
[null,null,null,5,{"$f":"CONCATENATE(Кроссворд!S3,Кроссворд!S4,Кроссворд!S5,Кроссворд!S6,Кроссворд!S7)","v":""},"юнона",0]
[null,null,null,6,{"$f":"CONCATENATE(Кроссворд!M12,Кроссворд!M13,Кроссворд!M14,Кроссворд!M15,Кроссворд!M16)","v":""},"время",0]
[null,null,null,7,{"$f":"CONCATENATE(Кроссворд!M16,Кроссворд!N16,Кроссворд!O16,Кроссворд!P16)","v":""},"янус",0]
[null,null,null,8,{"$f":"CONCATENATE(Кроссворд!R5,Кроссворд!S5,Кроссворд!T5,Кроссворд!U5,Кроссворд!V5,Кроссворд!W5,Кроссворд!X5)","v":""},"колизей",0]
[null,null,null,9,{"$f":"CONCATENATE(Кроссворд!V3,Кроссворд!V4,Кроссворд!V5,Кроссворд!V6,Кроссворд!V7,Кроссворд!V8,Кроссворд!V9,Кроссворд!V10)","v":""},"базилика",0]
[null,null,null,10,{"$f":"CONCATENATE(Кроссворд!V10,Кроссворд!W10,Кроссворд!X10,Кроссворд!Y10)","v":""},"арка",0]
[null,null,null,11,{"$f":"CONCATENATE(Кроссворд!O15,Кроссворд!O16,Кроссворд!O17,Кроссворд!O18,Кроссворд!O19)","v":""},"купол",0]
[null,null,null,12,{"$f":"CONCATENATE(Кроссворд!Y10,Кроссворд!Y11,Кроссворд!Y12,Кроссворд!Y13,Кроссворд!Y14,Кроссворд!Y15,Кроссворд!Y16)","v":""},"акведук",0]
[null,null,null,13,{"$f":"CONCATENATE(Кроссворд!N18,Кроссворд!O18,Кроссворд!P18,Кроссворд!Q18,Кроссворд!R18,Кроссворд!S18)","v":""},"консул",0]
[null,null,null,14,{"$f":"CONCATENATE(Кроссворд!X13,Кроссворд!Y13,Кроссворд!Z13,Кроссворд!AA13,Кроссворд!AB13)","v":""},"велит",0]
[null,null,null,15,{"$f":"CONCATENATE(Кроссворд!R17,Кроссворд!R18,Кроссворд!R19,Кроссворд!R20,Кроссворд!R21,Кроссворд!R22,Кроссворд!R23)","v":""},"нумитор",0]

{"sheet":"Результат","index":4,"n_rows":17,"n_cols":6,"rows_kept":17,"cut":false,"hidden":false,"merged":[[15,5,15,6],[16,5,16,6],[3,4,3,7],[4,4,5,4],[4,5,5,7],[6,4,7,4],[6,5,7,7],[8,4,9,4],[8,5,9,7]]}
[]
[]
[]
[null,null,null,null,"Регистрация"]
[null,null,null,null,"Фамилия"]
[]
[null,null,null,null,"Имя"]
[]
[null,null,null,null,"Класс"]
[]
[]
[]
[]
[]
[]
[null,null,null,null,"Правильно",{"$f":"SUM(Анализ!G3:G17)","v":0}]
[null,null,null,null,"Оценка",{"$f":"IF(F16>13,5,IF(F16>10,4,IF(F16>7,3,2)))","v":2}]